[Event "Early-Titled-Tuesday-Blitz-October-03-2023"]
[Site "Chess.com"]
[Date "2023.10.03"]
[Round "5"]
[White "Zhigalko_Sergei"]
[Black "Mesa_1"]
[Result "1-0"]
[WhiteElo "2934"]
[BlackElo "2636"]
[TimeControl "180+1"]
[EndTime "8:56:27 PDT"]
[Termination "Zhigalko_Sergei won by resignation"]

1. e4 {[%clk 0:03:00.9]} 1... e6 {[%clk 0:03:00.6]} 2. d4 {[%clk 0:02:57.4]}
2... d5 {[%clk 0:03:01.3]} 3. e5 {[%clk 0:02:57.8]} 3... c5 {[%clk 0:03:01.2]}
4. c3 {[%clk 0:02:56.5]} 4... Nc6 {[%clk 0:03:01.6]} 5. Nf3 {[%clk 0:02:56.7]}
5... Bd7 {[%clk 0:03:02.3]} 6. Be2 {[%clk 0:02:56.2]} 6... f6 {[%clk 0:02:56.8]}
7. O-O {[%clk 0:02:55.8]} 7... fxe5 {[%clk 0:02:55.8]} 8. Nxe5 {[%clk
0:02:56.7]} 8... Nxe5 {[%clk 0:02:55.3]} 9. dxe5 {[%clk 0:02:57.6]} 9... Qc7
{[%clk 0:02:55.6]} 10. c4 {[%clk 0:02:56.5]} 10... Ne7 {[%clk 0:02:41.2]} 11.
Nc3 {[%clk 0:02:42.9]} 11... d4 {[%clk 0:02:25.9]} 12. Ne4 {[%clk 0:02:39.9]}
12... Qxe5 {[%clk 0:02:26.6]} 13. Re1 {[%clk 0:02:38.8]} 13... Nc6 {[%clk
0:02:21.2]} 14. Bh5+ {[%clk 0:02:02.6]} 14... g6 {[%clk 0:02:18.5]} 15. Bg5
{[%clk 0:01:40.2]} 15... Be7 {[%clk 0:01:55.4]} 16. Nf6+ {[%clk 0:01:22.3]}
16... Bxf6 {[%clk 0:01:55.4]} 17. Rxe5 {[%clk 0:01:21.7]} 17... Bxe5 {[%clk
0:01:56.3]} 18. Bf3 {[%clk 0:01:06.1]} 18... O-O {[%clk 0:01:56.8]} 19. Qe2
{[%clk 0:01:04.1]} 19... Bg7 {[%clk 0:01:51.2]} 20. Re1 {[%clk 0:00:40.2]} 20...
d3 {[%clk 0:01:31]} 21. Qxd3 {[%clk 0:00:36.4]} 21... Nd4 {[%clk 0:01:28.2]} 22.
Be4 {[%clk 0:00:21.9]} 22... Rac8 {[%clk 0:01:22.1]} 23. h4 {[%clk 0:00:20.3]}
23... b5 {[%clk 0:01:16.6]} 24. b3 {[%clk 0:00:18.9]} 24... bxc4 {[%clk
0:01:16.7]} 25. bxc4 {[%clk 0:00:19.8]} 25... Rb8 {[%clk 0:01:14]} 26. h5 {[%clk
0:00:18.9]} 26... gxh5 {[%clk 0:01:13.6]} 27. Bxh7+ {[%clk 0:00:17.5]} 27... Kh8
{[%clk 0:01:14.4]} 28. Bg6 {[%clk 0:00:17.8]} 28... Rb2 {[%clk 0:01:04.6]} 29.
Qh3 {[%clk 0:00:16.6]} 29... Rfxf2 {[%clk 0:01:01.3]} 30. Qxh5+ {[%clk
0:00:16.6]} 30... Kg8 {[%clk 0:01:02]} 31. Be4 {[%clk 0:00:10.7]} 31... Ne2+
{[%clk 0:00:49.8]} 32. Rxe2 {[%clk 0:00:05]} 32... Rfxe2 {[%clk 0:00:44.2]} 33.
Qh7+ {[%clk 0:00:04.7]} 33... Kf8 {[%clk 0:00:43.1]} 34. Bh6 {[%clk 0:00:04.4]}
34... Bxh6 {[%clk 0:00:34.2]} 35. Qxh6+ {[%clk 0:00:05.3]} 35... Ke7 {[%clk
0:00:34]} 36. Bf3 {[%clk 0:00:04.7]} 36... Red2 {[%clk 0:00:26.7]} 37. Qg5+
{[%clk 0:00:04.3]} 37... Kd6 {[%clk 0:00:25.1]} 38. Qf4+ {[%clk 0:00:04.5]}
38... Ke7 {[%clk 0:00:16.8]} 39. Qc7 {[%clk 0:00:04.5]} 39... Rxa2 {[%clk
0:00:14.3]} 40. Qxc5+ {[%clk 0:00:04.6]} 40... Ke8 {[%clk 0:00:15.2]} 41. Qh5+
{[%clk 0:00:04]} 41... Ke7 {[%clk 0:00:15.3]} 42. Qg5+ {[%clk 0:00:04.2]} 42...
Kd6 {[%clk 0:00:14.7]} 43. c5+ {[%clk 0:00:04.5]} 43... Kc7 {[%clk 0:00:15.4]}
44. Qe5+ {[%clk 0:00:04.5]} 44... Kc8 {[%clk 0:00:15.6]} 45. c6 {[%clk
0:00:04.9]} 45... Be8 {[%clk 0:00:10.9]} 46. Qxe6+ {[%clk 0:00:05.1]} 46... Kd8
{[%clk 0:00:11.7]} 47. Qf6+ {[%clk 0:00:05.2]} 47... Kc7 {[%clk 0:00:11.9]} 48.
Qe5+ {[%clk 0:00:05.5]} 48... Kd8 {[%clk 0:00:12]} 49. c7+ {[%clk 0:00:05.9]}
49... Kd7 {[%clk 0:00:11.9]} 50. Bg4+ {[%clk 0:00:06.3]} 1-0

[Event "Early-Titled-Tuesday-Blitz-October-03-2023"]
[Site "Chess.com"]
[Date "2023.10.03"]
[Round "5"]
[White "Marcin"]
[Black "Man-Chuk"]
[Result "0-1"]
[WhiteElo "2500"]
[BlackElo "2767"]
[TimeControl "180+1"]
[EndTime "8:56:33 PDT"]
[Termination "Man-Chuk won on time"]

1. Nf3 {[%clk 0:02:58.2]} 1... d5 {[%clk 0:02:56]} 2. e3 {[%clk 0:02:53.8]} 2...
c5 {[%clk 0:02:55.2]} 3. c4 {[%clk 0:02:46.9]} 3... d4 {[%clk 0:02:52.9]} 4.
exd4 {[%clk 0:02:47.3]} 4... cxd4 {[%clk 0:02:53.1]} 5. d3 {[%clk 0:02:47.6]}
5... Nc6 {[%clk 0:02:52.1]} 6. g3 {[%clk 0:02:48.1]} 6... e5 {[%clk 0:02:46]} 7.
Bg2 {[%clk 0:02:48.6]} 7... Bd6 {[%clk 0:02:44.1]} 8. O-O {[%clk 0:02:49]} 8...
a5 {[%clk 0:02:38.7]} 9. Na3 {[%clk 0:02:45.5]} 9... Nge7 {[%clk 0:02:24.7]} 10.
Nb5 {[%clk 0:02:44.9]} 10... Bb8 {[%clk 0:02:13.4]} 11. b3 {[%clk 0:02:44.9]}
11... O-O {[%clk 0:02:13.1]} 12. Ba3 {[%clk 0:02:44.7]} 12... Re8 {[%clk
0:02:04]} 13. Re1 {[%clk 0:02:41.1]} 13... Ng6 {[%clk 0:01:58.6]} 14. Qd2 {[%clk
0:02:40.5]} 14... Ra6 {[%clk 0:01:55.6]} 15. c5 {[%clk 0:02:36.8]} 15... Be6
{[%clk 0:01:39.8]} 16. Nd6 {[%clk 0:02:34]} 16... Bxd6 {[%clk 0:01:39.6]} 17.
cxd6 {[%clk 0:02:34.9]} 17... Bd5 {[%clk 0:01:38.3]} 18. Rac1 {[%clk 0:02:31.8]}
18... Nb4 {[%clk 0:01:17.5]} 19. Bxb4 {[%clk 0:02:19.1]} 19... axb4 {[%clk
0:01:18.4]} 20. Qxb4 {[%clk 0:02:17.7]} 20... Rxd6 {[%clk 0:01:18.5]} 21. Rc5
{[%clk 0:02:12]} 21... h6 {[%clk 0:01:13.8]} 22. Rec1 {[%clk 0:02:10.7]} 22...
Bc6 {[%clk 0:01:12.4]} 23. Nd2 {[%clk 0:02:06.2]} 23... Bxg2 {[%clk 0:01:10.2]}
24. Kxg2 {[%clk 0:02:07.1]} 24... Qd7 {[%clk 0:00:51.4]} 25. Ne4 {[%clk
0:02:04.5]} 25... Ra6 {[%clk 0:00:49.5]} 26. Rc7 {[%clk 0:02:02.7]} 26... Qg4
{[%clk 0:00:49.8]} 27. Qd2 {[%clk 0:01:41.9]} 27... Nf4+ {[%clk 0:00:47.1]} 28.
Kg1 {[%clk 0:01:41.9]} 28... Ne2+ {[%clk 0:00:42.4]} 29. Kg2 {[%clk 0:01:37.7]}
29... Nxc1 {[%clk 0:00:39]} 30. Rxc1 {[%clk 0:01:38.6]} 30... f5 {[%clk
0:00:36.8]} 31. Nc5 {[%clk 0:01:25]} 31... Rc6 {[%clk 0:00:36.6]} 32. b4 {[%clk
0:01:01.9]} 32... b6 {[%clk 0:00:29.7]} 33. Nd7 {[%clk 0:00:54.9]} 33... Rxc1
{[%clk 0:00:27.1]} 34. Qxc1 {[%clk 0:00:55.8]} 34... e4 {[%clk 0:00:24.1]} 35.
Qc4+ {[%clk 0:00:50.9]} 35... Kh8 {[%clk 0:00:24.4]} 36. Qf7 {[%clk 0:00:47.3]}
36... Qf3+ {[%clk 0:00:22.2]} 37. Kh3 {[%clk 0:00:47.5]} 37... Qg4+ {[%clk
0:00:11.8]} 38. Kg2 {[%clk 0:00:47.5]} 38... Qf3+ {[%clk 0:00:05.8]} 39. Kh3
{[%clk 0:00:47.8]} 39... Rc8 {[%clk 0:00:05.2]} 40. Ne5 {[%clk 0:00:42.4]} 40...
Qxf2 {[%clk 0:00:05.7]} 41. Ng6+ {[%clk 0:00:24.5]} 41... Kh7 {[%clk 0:00:05.8]}
42. Ne7 {[%clk 0:00:22.7]} 42... Qf1+ {[%clk 0:00:03.3]} 43. Kh4 {[%clk
0:00:18.5]} 43... Ra8 {[%clk 0:00:03.5]} 44. Nxf5 {[%clk 0:00:16.1]} 44... Rg8
{[%clk 0:00:03.8]} 45. Qe6 {[%clk 0:00:03.2]} 45... exd3 {[%clk 0:00:02.7]} 46.
Ne7 {[%clk 0:00:03.6]} 46... Rf8 {[%clk 0:00:02.3]} 47. Qg6+ {[%clk 0:00:03.1]}
47... Kh8 {[%clk 0:00:02.8]} 48. g4 {[%clk 0:00:01.4]} 48... Qf6+ {[%clk
0:00:03.3]} 49. Qxf6 {[%clk 0:00:01.6]} 49... Rxf6 {[%clk 0:00:04.2]} 0-1

[Event "Early-Titled-Tuesday-Blitz-October-03-2023"]
[Site "Chess.com"]
[Date "2023.10.03"]
[Round "5"]
[White "Witik"]
[Black "Let_it_be_1"]
[Result "1/2-1/2"]
[WhiteElo "2837"]
[BlackElo "2628"]
[TimeControl "180+1"]
[EndTime "8:56:34 PDT"]
[Termination "Game drawn - insufficient material"]

1. d4 {[%clk 0:02:59.8]} 1... d5 {[%clk 0:03:00.1]} 2. Bf4 {[%clk 0:02:59.7]}
2... e6 {[%clk 0:03:00.5]} 3. e3 {[%clk 0:02:59.8]} 3... Bd6 {[%clk 0:03:00.8]}
4. Nd2 {[%clk 0:02:59.8]} 4... b6 {[%clk 0:02:56.8]} 5. Qg4 {[%clk 0:02:54]}
5... g6 {[%clk 0:02:52.6]} 6. Qg3 {[%clk 0:02:48.7]} 6... Ne7 {[%clk 0:02:43]}
7. Bd3 {[%clk 0:02:46]} 7... Ba6 {[%clk 0:02:38.9]} 8. Bxd6 {[%clk 0:02:31.5]}
8... Qxd6 {[%clk 0:02:37.3]} 9. Qxd6 {[%clk 0:02:31]} 9... cxd6 {[%clk
0:02:37.1]} 10. Bxa6 {[%clk 0:02:30.9]} 10... Nxa6 {[%clk 0:02:36.7]} 11. c3
{[%clk 0:02:26.6]} 11... Kd7 {[%clk 0:02:27.4]} 12. Ke2 {[%clk 0:02:21.3]} 12...
b5 {[%clk 0:02:25.3]} 13. Ngf3 {[%clk 0:02:16.2]} 13... h6 {[%clk 0:02:21.3]}
14. a4 {[%clk 0:02:10.6]} 14... b4 {[%clk 0:02:21.2]} 15. c4 {[%clk 0:02:10.9]}
15... dxc4 {[%clk 0:02:14.3]} 16. Nxc4 {[%clk 0:02:10.6]} 16... Rac8 {[%clk
0:02:10.7]} 17. Rhc1 {[%clk 0:02:10.2]} 17... f5 {[%clk 0:02:01.5]} 18. Nfd2
{[%clk 0:02:05.4]} 18... Rc7 {[%clk 0:01:56.2]} 19. Rc2 {[%clk 0:01:49.7]} 19...
Rhc8 {[%clk 0:01:55.3]} 20. Rac1 {[%clk 0:01:49.7]} 20... Nd5 {[%clk 0:01:09.6]}
21. Nb3 {[%clk 0:01:44]} 21... Ke7 {[%clk 0:01:01.3]} 22. Kd3 {[%clk 0:01:36.1]}
22... Nb8 {[%clk 0:00:54.8]} 23. f3 {[%clk 0:01:23.3]} 23... Nd7 {[%clk
0:00:51.6]} 24. e4 {[%clk 0:01:03.2]} 24... fxe4+ {[%clk 0:00:50.2]} 25. fxe4
{[%clk 0:01:03.4]} 25... Nf4+ {[%clk 0:00:50.2]} 26. Ke3 {[%clk 0:01:03.8]}
26... e5 {[%clk 0:00:39.4]} 27. dxe5 {[%clk 0:00:43.9]} 27... Nxe5 {[%clk
0:00:27.6]} 28. Nba5 {[%clk 0:00:37.2]} 28... Nfd3 {[%clk 0:00:23]} 29. Nxe5
{[%clk 0:00:32.9]} 29... Nxc1 {[%clk 0:00:18.4]} 30. Nec6+ {[%clk 0:00:32.3]}
30... Kd7 {[%clk 0:00:16.7]} 31. Rxc1 {[%clk 0:00:31.4]} 31... Rxc6 {[%clk
0:00:16.8]} 32. Nxc6 {[%clk 0:00:30.2]} 32... Rxc6 {[%clk 0:00:17.4]} 33. Rxc6
{[%clk 0:00:28.4]} 33... Kxc6 {[%clk 0:00:17.6]} 34. Kd4 {[%clk 0:00:29.1]}
34... a5 {[%clk 0:00:16.9]} 35. b3 {[%clk 0:00:24.3]} 35... Kc7 {[%clk
0:00:15.3]} 36. Kd5 {[%clk 0:00:22.5]} 36... Kd7 {[%clk 0:00:15.1]} 37. e5
{[%clk 0:00:20.2]} 37... dxe5 {[%clk 0:00:15.2]} 38. Kxe5 {[%clk 0:00:20.7]}
38... Kc6 {[%clk 0:00:14.5]} 39. h4 {[%clk 0:00:20.7]} 39... h5 {[%clk
0:00:14.3]} 40. Kf6 {[%clk 0:00:20.6]} 40... Kd5 {[%clk 0:00:14.2]} 41. Kxg6
{[%clk 0:00:20.1]} 41... Kd4 {[%clk 0:00:15.1]} 42. Kxh5 {[%clk 0:00:19.5]}
42... Kc3 {[%clk 0:00:16]} 43. g4 {[%clk 0:00:18.8]} 43... Kxb3 {[%clk
0:00:16.3]} 44. g5 {[%clk 0:00:19.7]} 44... Kxa4 {[%clk 0:00:15.8]} 45. g6
{[%clk 0:00:20.6]} 45... b3 {[%clk 0:00:16.5]} 46. g7 {[%clk 0:00:21.5]} 46...
b2 {[%clk 0:00:16.6]} 47. g8=Q {[%clk 0:00:22.4]} 47... b1=Q {[%clk 0:00:17.3]}
48. Qg6 {[%clk 0:00:20.8]} 48... Qb5+ {[%clk 0:00:16.9]} 49. Qg5 {[%clk
0:00:19.5]} 49... Kb4 {[%clk 0:00:15.3]} 50. Kg6 {[%clk 0:00:14.4]} 50... Qxg5+
{[%clk 0:00:12.2]} 51. hxg5 {[%clk 0:00:14.7]} 51... a4 {[%clk 0:00:12.7]} 52.
Kf7 {[%clk 0:00:15.5]} 52... a3 {[%clk 0:00:12.9]} 53. g6 {[%clk 0:00:16.4]}
53... a2 {[%clk 0:00:13]} 54. g7 {[%clk 0:00:17.3]} 54... a1=Q {[%clk 0:00:13]}
55. g8=Q {[%clk 0:00:18.2]} 55... Qa2+ {[%clk 0:00:13.4]} 56. Kf8 {[%clk
0:00:16.4]} 56... Qxg8+ {[%clk 0:00:14.3]} 57. Kxg8 {[%clk 0:00:16.3]} 1/2-1/2

[Event "Early-Titled-Tuesday-Blitz-October-03-2023"]
[Site "Chess.com"]
[Date "2023.10.03"]
[Round "5"]
[White "Jospem"]
[Black "chesskov1982"]
[Result "1-0"]
[WhiteElo "3063"]
[BlackElo "2825"]
[TimeControl "180+1"]
[EndTime "8:56:38 PDT"]
[Termination "Jospem won by resignation"]

1. e4 {[%clk 0:03:00.9]} 1... c6 {[%clk 0:02:58.5]} 2. d4 {[%clk 0:03:01]} 2...
d5 {[%clk 0:02:59.4]} 3. e5 {[%clk 0:03:01.6]} 3... c5 {[%clk 0:02:58.3]} 4. Nf3
{[%clk 0:03:01.9]} 4... Nc6 {[%clk 0:02:51.5]} 5. dxc5 {[%clk 0:03:01.5]} 5...
Bg4 {[%clk 0:02:49.4]} 6. c3 {[%clk 0:03:01.9]} 6... e6 {[%clk 0:02:32.2]} 7.
Be3 {[%clk 0:03:01.6]} 7... Bxf3 {[%clk 0:02:29.9]} 8. Qxf3 {[%clk 0:03:01.3]}
8... Nxe5 {[%clk 0:02:30.2]} 9. Bb5+ {[%clk 0:03:01.4]} 9... Nc6 {[%clk
0:02:28.4]} 10. c4 {[%clk 0:03:01.2]} 10... Nf6 {[%clk 0:02:24.3]} 11. Nc3
{[%clk 0:03:00.5]} 11... Be7 {[%clk 0:02:22]} 12. O-O {[%clk 0:02:54.5]} 12...
O-O {[%clk 0:02:20.3]} 13. Rfd1 {[%clk 0:02:50.2]} 13... Qa5 {[%clk 0:02:13]}
14. cxd5 {[%clk 0:02:22.1]} 14... Nxd5 {[%clk 0:02:05.1]} 15. Nxd5 {[%clk
0:02:20.4]} 15... exd5 {[%clk 0:01:59.2]} 16. Bf1 {[%clk 0:02:20.6]} 16... d4
{[%clk 0:01:48.7]} 17. Bxd4 {[%clk 0:02:21.1]} 17... Nxd4 {[%clk 0:01:46.2]} 18.
Rxd4 {[%clk 0:02:22]} 18... Bxc5 {[%clk 0:01:44.5]} 19. Rd7 {[%clk 0:02:16.3]}
19... Rad8 {[%clk 0:01:14.2]} 20. Rxb7 {[%clk 0:02:16.1]} 20... Rd2 {[%clk
0:01:11.4]} 21. b4 {[%clk 0:02:16.7]} 21... Rxf2 {[%clk 0:00:53.8]} 22. bxa5
{[%clk 0:01:49.5]} 22... Rxf3+ {[%clk 0:00:52.7]} 23. Kh1 {[%clk 0:01:50.2]}
23... Rf2 {[%clk 0:00:49]} 24. Rc7 {[%clk 0:01:36.3]} 24... Be3 {[%clk
0:00:40.4]} 25. Rd1 {[%clk 0:01:17.6]} 25... Rxa2 {[%clk 0:00:35.6]} 26. a6
{[%clk 0:01:17.3]} 26... Bb6 {[%clk 0:00:33.7]} 27. Re7 {[%clk 0:01:12.5]} 27...
Rc8 {[%clk 0:00:28.8]} 28. Bc4 {[%clk 0:01:03.6]} 28... Rf2 {[%clk 0:00:24.1]}
29. Bd5 {[%clk 0:00:40.6]} 29... g6 {[%clk 0:00:23.3]} 30. h3 {[%clk 0:00:40.7]}
30... Rc5 {[%clk 0:00:20.1]} 31. Rb7 {[%clk 0:00:36.3]} 31... Rf6 {[%clk
0:00:12.9]} 32. Rd7 {[%clk 0:00:29.6]} 32... Kg7 {[%clk 0:00:12.6]} 33. Kh2
{[%clk 0:00:29.8]} 33... Kh6 {[%clk 0:00:12.9]} 34. h4 {[%clk 0:00:27.6]} 34...
Kg7 {[%clk 0:00:13.2]} 35. Kh3 {[%clk 0:00:28]} 35... h5 {[%clk 0:00:13.2]} 36.
Rd3 {[%clk 0:00:25.4]} 36... Rc1 {[%clk 0:00:12.1]} 37. Rf3 {[%clk 0:00:17.4]}
37... Rxf3+ {[%clk 0:00:12]} 38. gxf3 {[%clk 0:00:17.5]} 38... Rc3 {[%clk
0:00:12.2]} 39. Rxf7+ {[%clk 0:00:17.2]} 39... Kh6 {[%clk 0:00:12.1]} 40. Rf6
{[%clk 0:00:17.7]} 40... Bd4 {[%clk 0:00:11]} 41. Re6 {[%clk 0:00:14.2]} 41...
Bg1 {[%clk 0:00:07.2]} 42. Be4 {[%clk 0:00:13.5]} 42... Bc5 {[%clk 0:00:04.3]}
43. Rxg6+ {[%clk 0:00:13.5]} 43... Kh7 {[%clk 0:00:04.8]} 44. Rg5+ {[%clk
0:00:13.4]} 44... Kh6 {[%clk 0:00:02.8]} 45. Rg6+ {[%clk 0:00:14]} 45... Kh7
{[%clk 0:00:03.1]} 46. Re6+ {[%clk 0:00:14.9]} 46... Kg7 {[%clk 0:00:02.8]} 47.
Kg2 {[%clk 0:00:14.5]} 47... Kf8 {[%clk 0:00:03.7]} 48. Re5 {[%clk 0:00:14.7]}
48... Kf7 {[%clk 0:00:04]} 49. Rxh5 {[%clk 0:00:14.9]} 49... Kf6 {[%clk
0:00:04.4]} 50. Rf5+ {[%clk 0:00:15.2]} 50... Ke6 {[%clk 0:00:04.5]} 51. Rg5
{[%clk 0:00:15.7]} 51... Bd6 {[%clk 0:00:03.5]} 52. h5 {[%clk 0:00:16.2]} 52...
Be5 {[%clk 0:00:04.1]} 53. h6 {[%clk 0:00:16.4]} 53... Ra3 {[%clk 0:00:04.9]}
54. h7 {[%clk 0:00:13.9]} 54... Ra2+ {[%clk 0:00:05.8]} 55. Kf1 {[%clk
0:00:14.3]} 55... Rh2 {[%clk 0:00:06.1]} 56. Rg8 {[%clk 0:00:13.2]} 56... Bf6
{[%clk 0:00:06.5]} 57. Ra8 {[%clk 0:00:12.7]} 57... Ke5 {[%clk 0:00:07]} 58. Rf8
{[%clk 0:00:13.1]} 58... Bg5 {[%clk 0:00:06.8]} 59. Rf5+ {[%clk 0:00:13.1]} 1-0

[Event "Early-Titled-Tuesday-Blitz-October-03-2023"]
[Site "Chess.com"]
[Date "2023.10.03"]
[Round "5"]
[White "JimDiGrease"]
[Black "sokidze"]
[Result "1-0"]
[WhiteElo "2921"]
[BlackElo "2788"]
[TimeControl "180+1"]
[EndTime "8:56:39 PDT"]
[Termination "JimDiGrease won by checkmate"]

1. d4 {[%clk 0:03:00.9]} 1... d5 {[%clk 0:03:00.6]} 2. c4 {[%clk 0:02:58.9]}
2... e6 {[%clk 0:03:00.8]} 3. Nf3 {[%clk 0:02:59]} 3... Nf6 {[%clk 0:03:00.6]}
4. Qc2 {[%clk 0:02:59]} 4... Be7 {[%clk 0:02:50.1]} 5. cxd5 {[%clk 0:02:58.4]}
5... exd5 {[%clk 0:02:50.3]} 6. Bf4 {[%clk 0:02:58.6]} 6... c6 {[%clk
0:02:49.1]} 7. e3 {[%clk 0:02:59]} 7... Nbd7 {[%clk 0:02:46.5]} 8. Nc3 {[%clk
0:02:54.7]} 8... Nf8 {[%clk 0:02:39.2]} 9. Bd3 {[%clk 0:02:46.2]} 9... Ng6
{[%clk 0:02:35.6]} 10. Bg3 {[%clk 0:02:11]} 10... Nh5 {[%clk 0:02:34.6]} 11. Be5
{[%clk 0:02:07.5]} 11... Nxe5 {[%clk 0:02:14]} 12. dxe5 {[%clk 0:02:05.6]} 12...
g6 {[%clk 0:02:13.8]} 13. O-O {[%clk 0:02:03.4]} 13... O-O {[%clk 0:02:09.8]}
14. h3 {[%clk 0:02:03.3]} 14... Ng7 {[%clk 0:01:40.7]} 15. Rfd1 {[%clk
0:01:57.8]} 15... Ne6 {[%clk 0:01:39.6]} 16. Ne2 {[%clk 0:01:49.4]} 16... Nc5
{[%clk 0:01:16.9]} 17. e4 {[%clk 0:01:38.9]} 17... dxe4 {[%clk 0:01:15.1]} 18.
Bxe4 {[%clk 0:01:38]} 18... Qb6 {[%clk 0:01:15.3]} 19. Ned4 {[%clk 0:00:54.7]}
19... Nxe4 {[%clk 0:01:07]} 20. Qxe4 {[%clk 0:00:55.6]} 20... c5 {[%clk
0:01:07.1]} 21. Nb3 {[%clk 0:00:49.6]} 21... Bf5 {[%clk 0:00:51.2]} 22. Qc4
{[%clk 0:00:42.8]} 22... Be6 {[%clk 0:00:50.8]} 23. Qc3 {[%clk 0:00:43.1]} 23...
Rfd8 {[%clk 0:00:47.8]} 24. Nbd2 {[%clk 0:00:42.8]} 24... Qc6 {[%clk 0:00:43.6]}
25. Nc4 {[%clk 0:00:40.2]} 25... b5 {[%clk 0:00:40]} 26. Ne3 {[%clk 0:00:33.9]}
26... Kg7 {[%clk 0:00:39.2]} 27. Nd4 {[%clk 0:00:32.4]} 27... Qb6 {[%clk
0:00:32.5]} 28. Nxe6+ {[%clk 0:00:30.8]} 28... Qxe6 {[%clk 0:00:33.4]} 29. b3
{[%clk 0:00:28.5]} 29... f6 {[%clk 0:00:26]} 30. a4 {[%clk 0:00:18.9]} 30...
bxa4 {[%clk 0:00:19.6]} 31. Rxd8 {[%clk 0:00:16.2]} 31... Rxd8 {[%clk 0:00:19]}
32. Rxa4 {[%clk 0:00:16]} 32... Rd7 {[%clk 0:00:09.4]} 33. exf6+ {[%clk
0:00:15.4]} 33... Qxf6 {[%clk 0:00:09.3]} 34. Qc2 {[%clk 0:00:13.6]} 34... Qf7
{[%clk 0:00:08.6]} 35. g3 {[%clk 0:00:11]} 35... Rc7 {[%clk 0:00:06.3]} 36. Rf4
{[%clk 0:00:11.1]} 36... Qe6 {[%clk 0:00:06.2]} 37. Re4 {[%clk 0:00:11.8]} 37...
Qf7 {[%clk 0:00:06.3]} 38. Nc4 {[%clk 0:00:08.8]} 38... Qf6 {[%clk 0:00:03.6]}
39. Qe2 {[%clk 0:00:08.7]} 39... Rd7 {[%clk 0:00:03.3]} 40. Re6 {[%clk
0:00:08.5]} 40... Qf7 {[%clk 0:00:03.7]} 41. Qe4 {[%clk 0:00:07.2]} 41... Bf6
{[%clk 0:00:03.9]} 42. Nd6 {[%clk 0:00:06.5]} 42... Rxd6 {[%clk 0:00:04.3]} 43.
Rxd6 {[%clk 0:00:07.4]} 43... Bd4 {[%clk 0:00:04.9]} 44. Qf4 {[%clk 0:00:04.8]}
44... Qe7 {[%clk 0:00:01.8]} 45. Rc6 {[%clk 0:00:05.2]} 45... Qe1+ {[%clk
0:00:01.6]} 46. Kg2 {[%clk 0:00:05.5]} 46... h5 {[%clk 0:00:01]} 47. Rc7+ {[%clk
0:00:05.4]} 47... Kh8 {[%clk 0:00:01.6]} 48. Qf8# {[%clk 0:00:05.6]} 1-0

[Event "Early-Titled-Tuesday-Blitz-October-03-2023"]
[Site "Chess.com"]
[Date "2023.10.03"]
[Round "5"]
[White "Markov_Mikhail"]
[Black "DefiantChair"]
[Result "0-1"]
[WhiteElo "2692"]
[BlackElo "2547"]
[TimeControl "180+1"]
[EndTime "8:56:39 PDT"]
[Termination "DefiantChair won on time"]

1. c4 {[%clk 0:02:58.9]} 1... e6 {[%clk 0:03:00.1]} 2. Nf3 {[%clk 0:02:59.4]}
2... Nf6 {[%clk 0:03:00]} 3. g3 {[%clk 0:02:59.9]} 3... d5 {[%clk 0:03:00.7]} 4.
Bg2 {[%clk 0:03:00]} 4... dxc4 {[%clk 0:03:00.3]} 5. Qa4+ {[%clk 0:02:59.5]}
5... Nbd7 {[%clk 0:02:59.9]} 6. Qxc4 {[%clk 0:02:58.9]} 6... a6 {[%clk
0:02:59.7]} 7. O-O {[%clk 0:02:58.6]} 7... b5 {[%clk 0:02:57.7]} 8. Qc2 {[%clk
0:02:58.9]} 8... Bb7 {[%clk 0:02:56.5]} 9. d3 {[%clk 0:02:59.2]} 9... c5 {[%clk
0:02:54.3]} 10. b3 {[%clk 0:02:57.7]} 10... Bd6 {[%clk 0:02:51.8]} 11. Bb2
{[%clk 0:02:56.6]} 11... O-O {[%clk 0:02:49.4]} 12. Nbd2 {[%clk 0:02:56.9]}
12... Qe7 {[%clk 0:02:32.6]} 13. e4 {[%clk 0:02:28.3]} 13... e5 {[%clk
0:02:27.2]} 14. a4 {[%clk 0:02:27.5]} 14... Rad8 {[%clk 0:01:54.9]} 15. axb5
{[%clk 0:02:25]} 15... axb5 {[%clk 0:01:55.8]} 16. Ra7 {[%clk 0:02:25.2]} 16...
Rb8 {[%clk 0:01:24.4]} 17. Rfa1 {[%clk 0:02:08.5]} 17... Bc7 {[%clk 0:01:21.5]}
18. Nf1 {[%clk 0:02:07.5]} 18... Bb6 {[%clk 0:01:21.5]} 19. R7a2 {[%clk
0:02:07.2]} 19... Rfd8 {[%clk 0:01:19.2]} 20. Ne3 {[%clk 0:02:05.9]} 20... Qe6
{[%clk 0:01:15.1]} 21. h4 {[%clk 0:01:57.8]} 21... h6 {[%clk 0:01:15.2]} 22. Kh2
{[%clk 0:01:56.9]} 22... Bc7 {[%clk 0:01:09.5]} 23. Bh3 {[%clk 0:01:51]} 23...
Qe8 {[%clk 0:01:07.6]} 24. Nf5 {[%clk 0:01:49.2]} 24... Qf8 {[%clk 0:00:50.6]}
25. Qc1 {[%clk 0:01:42.1]} 25... Kh7 {[%clk 0:00:50]} 26. Ra7 {[%clk 0:01:37]}
26... g6 {[%clk 0:00:43.4]} 27. Ne3 {[%clk 0:01:36.2]} 27... Bb6 {[%clk
0:00:41.4]} 28. R7a2 {[%clk 0:01:36]} 28... Qe7 {[%clk 0:00:41.3]} 29. Qc2
{[%clk 0:01:25.9]} 29... Rbc8 {[%clk 0:00:34.6]} 30. Rd1 {[%clk 0:01:23]} 30...
Rc7 {[%clk 0:00:34.7]} 31. Qb1 {[%clk 0:01:20.9]} 31... Rcc8 {[%clk 0:00:28.8]}
32. Qa1 {[%clk 0:01:09.6]} 32... Ra8 {[%clk 0:00:28.7]} 33. Ng4 {[%clk
0:00:57.4]} 33... Rxa2 {[%clk 0:00:24.5]} 34. Qxa2 {[%clk 0:00:57.4]} 34...
Nxg4+ {[%clk 0:00:21.1]} 35. Bxg4 {[%clk 0:00:58.3]} 35... Nf6 {[%clk
0:00:20.7]} 36. Bh3 {[%clk 0:00:51.3]} 36... Nxe4 {[%clk 0:00:19.4]} 37. Nxe5
{[%clk 0:00:21.4]} 37... Nxf2 {[%clk 0:00:18.3]} 38. Rf1 {[%clk 0:00:21.2]}
38... c4 {[%clk 0:00:13.7]} 39. bxc4 {[%clk 0:00:18.6]} 39... f6 {[%clk
0:00:13]} 40. Ng4 {[%clk 0:00:06.7]} 40... Nxg4+ {[%clk 0:00:11.4]} 41. Bxg4
{[%clk 0:00:07.6]} 41... f5 {[%clk 0:00:10.6]} 42. Bd1 {[%clk 0:00:06.7]} 42...
Rxd3 {[%clk 0:00:10]} 43. Ba1 {[%clk 0:00:05.1]} 43... Qd7 {[%clk 0:00:09.8]}
44. Qb1 {[%clk 0:00:01.8]} 44... Rd2+ {[%clk 0:00:10]} 45. Kh3 {[%clk
0:00:02.7]} 45... Bg2+ {[%clk 0:00:09.5]} 46. Kh2 {[%clk 0:00:02.8]} 46... Bxf1+
{[%clk 0:00:10]} 47. Kh1 {[%clk 0:00:03.6]} 47... Bg2+ {[%clk 0:00:10.3]} 48.
Kh2 {[%clk 0:00:04.5]} 48... Be4+ {[%clk 0:00:10.8]} 0-1